fUST/lending_fUST_20250730
["ID","MTS","AMOUNT","RATE_DAILY","PERIOD"]
[376023582,1753825853024,-1213.51,0.000211,2]
[376023584,1753825853034,-460.0,0.000211,2]
[376023586,1753825853043,-460.0,0.000211,2]
[376023588,1753825853052,-624.94,0.000211,2]
[376023590,1753825853062,-4419.34,0.00021102,2]
[376023593,1753825853071,-460.0,0.00021102,2]
[376023595,1753825853081,-477.47,0.00021102,2]
[376023596,1753825853094,-796.57,0.00021102,2]
[376023598,1753825853103,-306.7123273,0.00021102,2]
[376023600,1753825853113,-460.0,0.00021102,2]
[376023603,1753825853122,-637.15,0.00021102,2]
[376023605,1753825853132,-578.21,0.00021102,2]
[376023607,1753825853141,-460.0,0.00021102,2]
[376023609,1753825853150,-1636.02,0.00021102,2]
[376023611,1753825853159,-460.0,0.00021102,2]
[376023613,1753825853169,-486.55,0.00021102,2]
[376023615,1753825853179,-460.0,0.00021102,2]
[376023617,1753825853188,-460.0,0.00021102,2]
[376023619,1753825853198,-460.0,0.00021102,2]
[376023621,1753825853207,-460.0,0.00021102,2]
[376023623,1753825853216,-920.0,0.00021103,2]
[376023625,1753825853226,-560.51,0.00021103,2]
[376023627,1753825853235,-460.0,0.00021103,2]
[376023629,1753825853244,-534.99,0.00021103,2]
[376023631,1753825853254,-1691.88,0.00021103,2]
[376023633,1753825853263,-684.41,0.00021103,2]
[376023635,1753825853274,-1178.35,0.00021103,2]
[376023637,1753825853283,-563.13,0.00021103,2]
[376023639,1753825853293,-460.0,0.00021103,2]
[376023641,1753825853303,-808.78,0.00021103,2]
[376023643,1753825853312,-1224.66,0.00021104,2]
[376023645,1753825853321,-460.0,0.00021104,2]
[376023647,1753825853331,-4927.21,0.00021104,2]
[376023649,1753825853340,-1238.68,0.00021104,2]
[376023651,1753825853350,-327.299336,0.00021105,2]
[376023653,1753825853359,-327.299336,0.00021105,2]
[376023655,1753825853368,-151.0,0.00021105,2]
[376023657,1753825853377,-1755.58,0.00021105,2]
[376023659,1753825853387,-460.0,0.00021105,2]
[376023661,1753825853396,-1139.3,0.00021105,2]
[376023663,1753825853405,-3000.0,0.0002111,2]
[376023665,1753825853415,-1500.0,0.00021116,2]
[376023667,1753825853424,-698.58295564,0.00021116,2]
[376023669,1753825853434,-3000.0,0.0002112,2]
[376023671,1753825853443,-3000.0,0.0002113,2]
[376023673,1753825853452,-3000.0,0.0002114,2]
[376023675,1753825853462,-3000.0,0.0002115,2]
[376023677,1753825853472,-500.35188838,0.0002115,2]
[376023679,1753825853481,-501.07928463,0.0002115,2]
[376023681,1753825853491,-500.0,0.0002115,2]
[376023683,1753825853501,-302.04489196,0.0002115,2]
[376023685,1753825853510,-151.0,0.00021159,2]
[376023687,1753825853519,-3000.0,0.0002116,2]
[376023689,1753825853528,-3000.0,0.0002117,2]
[376023692,1753825853538,-151.0,0.0002117,2]
[376023693,1753825853547,-3000.0,0.0002118,2]
[376023696,1753825853556,-3000.0,0.0002119,2]
[376023698,1753825853565,-3000.0,0.000212,2]
[376023699,1753825853575,-151.0,0.000212,3]
[376023702,1753825853586,-327.299336,0.000212,2]
[376023704,1753825853596,-327.299336,0.000212,2]
[376023705,1753825853605,-151.0,0.000212,2]
[376023707,1753825853614,-151.0,0.000212,3]
[376023709,1753825853623,-151.0,0.00021204,2]
[376023711,1753825853632,-151.0,0.00021204,2]
[376023713,1753825853641,-151.0,0.00021205,2]
[376023715,1753825853650,-151.0,0.00021205,2]
[376023717,1753825853659,-151.0,0.00021205,2]
[376023719,1753825853668,-151.0,0.00021205,2]
[376023720,1753825853678,-151.0,0.00021205,2]
[376023721,1753825853687,-151.0,0.00021205,2]
[376023722,1753825853696,-151.0,0.00021205,2]
[376023723,1753825853705,-151.0,0.00021205,2]
[376023724,1753825853715,-151.0,0.00021205,2]
[376023725,1753825853724,-151.0,0.00021215,2]
[376023726,1753825853733,-151.0,0.00021215,2]
[376023727,1753825853743,-151.0,0.00021215,2]
[376023728,1753825853752,-256.395145,0.00021245,4]
[376023729,1753825853761,-151.0,0.00021262,2]
[376023730,1753825853774,-200.832621,0.00021262,2]
[376023731,1753825853783,-200.832621,0.00021262,2]
[376023732,1753825853792,-1281.4,0.00021264,4]
[376023733,1753825853802,-360.0,0.00021287,2]
[376023734,1753825853813,-151.0,0.000213,4]
[376023735,1753825853824,-1000.0,0.00021322,2]
[376023736,1753825853833,-1000.0,0.00021322,2]
[376023737,1753825853843,-587.58724841,0.00021322,2]
[376023738,1753825853853,-1000.0,0.00021327,2]
[376023739,1753825853863,-526.56501023,0.00021327,2]
[376023740,1753825853872,-500.0,0.00021327,2]
[376023741,1753825853882,-562.9122084,0.00021327,2]
[376023742,1753825853892,-502.38974247,0.00021327,2]
[376023743,1753825853901,-500.0,0.00021327,2]
[376023744,1753825853911,-1000.0,0.00021327,2]
[376023745,1753825853920,-1001.537476,0.00021327,2]
[376023746,1753825853930,-723.80422117,0.00021327,2]
[376023747,1753825853939,-1000.0,0.00021327,2]
[376023748,1753825853948,-1000.0,0.00021327,2]
[376023749,1753825853957,-1000.0,0.00021327,2]
[376023750,1753825853966,-1086.67692923,0.00021327,2]
[376023751,1753825853975,-460.0,0.00021365,2]
[376023752,1753825853985,-460.0,0.00021365,2]
[376023753,1753825853995,-1633.55,0.00021365,2]
[376023754,1753825854004,-2492.59,0.00021374,2]
[376023755,1753825854013,-460.0,0.00021374,2]
[376023756,1753825854023,-2035.69,0.00021374,2]
[376023757,1753825854032,-499.32,0.00021374,2]
[376023758,1753825854041,-1213.51,0.00021374,2]
[376023759,1753825854051,-460.0,0.00021374,2]
[376023760,1753825854060,-460.0,0.00021374,2]
[376023761,1753825854069,-624.94,0.00021374,2]
[376023762,1753825854079,-4419.34,0.00021376,2]
[376023763,1753825854088,-460.0,0.00021376,2]
[376023764,1753825854098,-477.47,0.00021376,2]
[376023765,1753825854107,-796.57,0.00021376,2]
[376023766,1753825854116,-460.0,0.00021376,2]
[376023767,1753825854125,-637.15,0.00021376,2]
[376023768,1753825854134,-578.21,0.00021376,2]
[376023769,1753825854144,-460.0,0.00021376,2]
[376023770,1753825854153,-1636.02,0.00021376,2]
[376023771,1753825854162,-460.0,0.00021376,2]
[376023772,1753825854172,-486.55,0.00021376,2]
[376023773,1753825854182,-460.0,0.00021376,2]
[376023774,1753825854192,-460.0,0.00021376,2]
[376023775,1753825854201,-460.0,0.00021376,2]
[376023776,1753825854210,-460.0,0.00021376,2]
[376023777,1753825854219,-920.0,0.00021377,2]
[376023778,1753825854228,-560.51,0.00021377,2]
[376023779,1753825854238,-460.0,0.00021377,2]
[376023780,1753825854248,-534.99,0.00021377,2]
[376023781,1753825854257,-1691.88,0.00021377,2]
[376023782,1753825854267,-684.41,0.00021377,2]
[376023783,1753825854277,-1178.35,0.00021377,2]
[376023784,1753825854286,-563.13,0.00021377,2]
[376023785,1753825854295,-460.0,0.00021377,2]
[376023786,1753825854304,-808.78,0.00021377,2]
[376023787,1753825854314,-250.183267,0.00021378,2]
[376023788,1753825854323,-327.299336,0.00021378,2]
[376023789,1753825854332,-327.299346,0.00021378,2]
[376023790,1753825854342,-1224.66,0.00021378,2]
[376023791,1753825854351,-151.0,0.00021378,2]
[376023792,1753825854360,-386.8570891,0.00021378,2]
[376023793,1753825854497,-73.1429109,0.00021378,2]
[376023794,1753825854507,-4927.21,0.00021378,2]
[376023795,1753825854517,-1238.68,0.00021378,2]
[376023796,1753825854527,-151.0,0.00021379,2]
[376023797,1753825854536,-151.0,0.00021379,2]
[376023798,1753825854546,-1755.58,0.00021379,2]
[376023799,1753825854555,-460.0,0.00021379,2]
[376023800,1753825854564,-1139.3,0.00021379,2]
[376023801,1753825854573,-206.0,0.0002138,2]
[376023802,1753825854583,-151.0,0.000214,2]
[376023803,1753825854592,-151.0,0.000214,3]
[376023804,1753825854601,-1000.0,0.000214,2]
[376023805,1753825854611,-256.395145,0.00021401,2]
[376023806,1753825854620,-2297.0,0.00021426,2]
[376023807,1753825854629,-1000.0,0.00021441,2]
[376023808,1753825854639,-152.148301,0.00021478,2]
[376023809,1753825854648,-182.3033446,0.00021479,2]
[376023810,1753825854762,-172.79743861,0.00021479,2]
[376023811,1753825854774,-151.0,0.00021485,2]
[376023812,1753825854783,-1000.0,0.00021492,2]
[376023813,1753825854793,-1000.0,0.00021492,2]
[376023814,1753825854803,-151.0,0.000215,3]
[376023815,1753825854813,-151.0,0.000215,3]
[376023816,1753825854823,-1281.4,0.00021505,4]
[376023817,1753825854832,-1000.0,0.00021513,2]
[376023818,1753825854842,-182.3033446,0.00021589,2]
[376023819,1753825854853,-800.0,0.00021596,2]
[376023820,1753825854863,-154.83559355,0.00021639,2]
[376023821,1753825854872,-460.0,0.00021639,2]
[376023822,1753825854883,-238.21,0.00021639,2]
[376023823,1753825854893,-1633.55,0.00021639,2]
[376023824,1753825854902,-2492.59,0.00021648,2]
[376023825,1753825854911,-460.0,0.00021648,2]
[376023826,1753825854920,-2035.69,0.00021648,2]
[376023827,1753825854930,-499.32,0.00021648,2]
[376023828,1753825854940,-1213.51,0.00021648,2]
[376023829,1753825854949,-460.0,0.00021648,2]
[376023830,1753825854959,-460.0,0.00021648,2]
[376023831,1753825854968,-624.94,0.00021648,2]
[376023832,1753825854978,-4419.34,0.0002165,2]
[376023833,1753825854988,-460.0,0.0002165,2]
[376023834,1753825854997,-477.47,0.0002165,2]
[376023835,1753825855006,-796.57,0.0002165,2]
[376023836,1753825855016,-460.0,0.0002165,2]
[376023837,1753825855025,-637.15,0.0002165,2]
[376023838,1753825855035,-578.21,0.0002165,2]
[376023839,1753825855044,-460.0,0.0002165,2]
[376023840,1753825855054,-1636.02,0.0002165,2]
[376023841,1753825855063,-460.0,0.0002165,2]
[376023842,1753825855074,-486.55,0.0002165,2]
[376023843,1753825855084,-460.0,0.0002165,2]
[376023844,1753825855094,-460.0,0.0002165,2]
[376023845,1753825855104,-602.54205183,0.0002165,2]
[376023846,1753825855113,-920.0,0.00021651,2]
[376023847,1753825855122,-560.51,0.00021651,2]
[376023848,1753825855132,-460.0,0.00021651,2]
[376023849,1753825855142,-534.99,0.00021651,2]
[376023850,1753825855151,-1691.88,0.00021651,2]
[376023851,1753825855161,-684.41,0.00021651,2]
[376023852,1753825855170,-1178.35,0.00021651,2]
[376023853,1753825855179,-563.13,0.00021651,2]
[376023854,1753825855189,-362.75310159,0.00021651,2]
[376023855,1753825855199,-808.78,0.00021651,2]
[376023856,1753825855208,-1224.66,0.00021652,2]
[376023857,1753825855218,-460.0,0.00021652,2]
[376023858,1753825855228,-4927.21,0.00021652,2]
[376023859,1753825855238,-1238.68,0.00021652,2]
[376023860,1753825855247,-1755.58,0.00021653,2]
[376023861,1753825855257,-460.0,0.00021653,2]
[376023862,1753825855267,-1139.3,0.00021653,2]
[376023863,1753825855276,-430.1392862,0.00021659,2]
[376023864,1753825855285,-430.1392862,0.00021659,2]
[376023865,1753825855295,-430.1392862,0.00021659,2]
[376023866,1753825855304,-430.1392862,0.00021659,2]
[376023867,1753825855314,-430.1392862,0.00021659,2]
[376023868,1753825855323,-430.1392862,0.00021659,2]
[376023869,1753825855334,-430.1392862,0.00021659,2]
[376023870,1753825855344,-430.1392862,0.00021659,2]
[376023871,1753825855353,-1004.50768938,0.00021698,2]
[376023872,1753825855363,-182.3033446,0.00021699,2]
[376023873,1753825855373,-151.0,0.000217,4]
[376023874,1753825855382,-151.0,0.000217,3]
[376023875,1753825855392,-605.27375019,0.00021705,6]
[376023876,1753825855401,-202.18302273,0.00021738,2]
[376023877,1753825855411,-107584.95979049,0.00021739,2]
[376023878,1753825855424,-566.78334563,0.00021739,2]
[376023879,1753825855435,-7562.73911105,0.00021739,2]
[376023880,1753825855444,-95.68300772,0.00021746,4]
[376023881,1753825855456,-1185.71699228,0.00021746,4]
[376023882,1753825855465,-179.76630381,0.00021751,2]
[376023883,1753825855474,-145.14500939,0.00021752,2]
[376023884,1753825855486,-5.85499061,0.00021752,2]
[376023885,1753825855496,-256.395145,0.00021759,4]
[376023886,1753825855506,-172.79743861,0.00021781,2]
[376023887,1753825855515,-182.3033446,0.00021808,2]
[376023888,1753825855525,-60.50908118,0.0002182,2]
[376023889,1753825855537,-145.49091882,0.0002182,2]
[376023890,1753825855547,-151.0,0.0002182,2]
[376023891,1753825855556,-460.0,0.00021835,2]
[376023892,1753825855566,-188.04683259,0.0002187,2]
[376023893,1753825855575,-1014.4452744,0.0002187,2]
[376023894,1753825855584,-500.0,0.00021874,2]
[376023895,1753825855594,-500.0,0.00021874,2]
[376023896,1753825855603,-1500.0,0.00021874,2]
[376023897,1753825855613,-1500.0,0.00021874,2]
[376023898,1753825855622,-151.0,0.000219,2]
[376023899,1753825855633,-151.0,0.000219,2]
[376023900,1753825855643,-151.0,0.000219,2]
[376023901,1753825855652,-1000.0,0.000219,2]
[376023902,1753825855661,-1566.41039763,0.00021912,2]
[376023903,1753825855671,-460.0,0.00021913,2]
[376023904,1753825855680,-1633.55,0.00021913,2]
[376023905,1753825855689,-750.0,0.00021914,2]
[376023906,1753825855699,-151.0,0.00021917,2]
[376023907,1753825855708,-151.0,0.00021917,2]
[376023908,1753825855717,-151.0,0.00021917,2]
[376023909,1753825855726,-502.98,0.00021917,2]
[376023910,1753825855735,-500.0,0.00021917,2]
[376023911,1753825855744,-500.0,0.00021917,2]
[376023912,1753825855754,-500.0,0.00021917,2]
[376023913,1753825855763,-500.0,0.00021917,2]
[376023914,1753825855776,-500.0,0.00021917,2]
[376023915,1753825855785,-500.0,0.00021917,2]
[376023916,1753825855794,-500.0,0.00021917,2]
[376023917,1753825855803,-500.0,0.00021917,2]
[376023918,1753825855814,-500.0,0.00021917,2]
[376023919,1753825855823,-500.0,0.00021917,2]
[376023920,1753825855832,-500.0,0.00021917,2]
[376023921,1753825855842,-182.3033446,0.00021918,2]
[376023922,1753825855853,-151.0,0.00021918,2]
[376023923,1753825855862,-151.0,0.00021918,2]
[376023924,1753825855872,-200.0,0.00021918,2]
[376023925,1753825855882,-150.0,0.00021918,2]
[376023926,1753825855891,-200.832621,0.00021918,7]
[376023927,1753825855900,-200.832621,0.00021918,7]
[376023928,1753825855910,-756.59218773,0.00021922,8]
[376023929,1753825855919,-2492.59,0.00021922,2]
[376023930,1753825855929,-460.0,0.00021922,2]
[376023931,1753825855938,-2035.69,0.00021922,2]
[376023932,1753825855947,-499.32,0.00021922,2]
[376023933,1753825855956,-1213.51,0.00021922,2]
[376023934,1753825855965,-460.0,0.00021922,2]
[376023935,1753825855977,-460.0,0.00021922,2]
[376023936,1753825855987,-624.94,0.00021922,2]
[376023937,1753825855996,-760.96580223,0.00021924,2]
[376023938,1753825856008,-888.02537271,0.00021924,2]
[376023939,1753825856020,-1705.84363234,0.00021924,2]
[376023940,1753825856117,-1158.23,0.00021105,2]
[376023941,1753825856127,-460.0,0.0002165,2]
[376023942,1753825856137,-1064.50519272,0.00021924,2]
[376023943,1753825856147,-477.47,0.00021924,2]
[376023944,1753825856157,-796.57,0.00021924,2]
[376023945,1753825856166,-460.0,0.00021924,2]
[376023946,1753825856176,-637.15,0.00021924,2]
[376023947,1753825856185,-578.21,0.00021924,2]
[376023948,1753825856194,-460.0,0.00021924,2]
[376023949,1753825856204,-1636.02,0.00021924,2]
[376023950,1753825856214,-460.0,0.00021924,2]
[376023951,1753825856224,-486.55,0.00021924,2]
[376023952,1753825856235,-460.0,0.00021924,2]
[376023953,1753825856244,-460.0,0.00021924,2]
[376023954,1753825856254,-460.0,0.00021924,2]
[376023955,1753825856264,-920.0,0.00021925,2]
[376023956,1753825856273,-560.51,0.00021925,2]
[376023957,1753825856283,-344.04134565,0.00021925,2]
[376023958,1753825856293,-483.10961583,0.00021925,2]
[376023959,1753825856302,-534.99,0.00021925,2]
[376023960,1753825856312,-1691.88,0.00021925,2]
[376023961,1753825856321,-684.41,0.00021925,2]
[376023962,1753825856337,-1178.35,0.00021925,2]
[376023963,1753825856365,-563.13,0.00021925,2]
[376023964,1753825856374,-808.78,0.00021925,2]
[376023965,1753825856384,-1224.66,0.00021926,2]
[376023966,1753825856394,-460.0,0.00021926,2]
[376023967,1753825856403,-4927.21,0.00021926,2]
[376023968,1753825856412,-1238.68,0.00021926,2]
[376023969,1753825856422,-1755.58,0.00021927,2]
[376023970,1753825856431,-460.0,0.00021927,2]
[376023971,1753825856441,-1139.3,0.00021927,2]
[376023972,1753825856450,-151.0,0.00021928,7]
[376023973,1753825856459,-151.0,0.00021928,7]
[376023974,1753825856469,-1566.41039763,0.00021945,2]
[376023975,1753825856479,-206.26449158,0.00021967,2]
[376023976,1753825856488,-501.16009197,0.00021973,2]
[376023977,1753825856498,-500.0,0.00021973,2]
[376023978,1753825856507,-1281.4,0.00021988,4]
[376023979,1753825856516,-1500.0,0.00021989,2]
[376023980,1753825856526,-206.26449158,0.00021997,2]
[376023981,1753825856536,-2445.70759204,0.00022,2]
[376023982,1753825856545,-2134.48,0.00022,7]
[376023983,1753825856555,-13241.83,0.00022,7]
[376023984,1753825856564,-3957.85,0.00022,7]
[376023985,1753825856574,-182.3033446,0.00022,2]
[376023986,1753825856583,-284.06082,0.00022,7]
[376023987,1753825856593,-151.0,0.00022,7]
[376023988,1753825856603,-200.832621,0.00022,7]
[376023989,1753825856612,-200.832621,0.00022,7]
[376023990,1753825856621,-52604.63,0.00022,2]
[376023991,1753825856631,-160.0,0.00022,7]
[376023992,1753825856640,-12637.12721421,0.00022,7]
[376023993,1753825856650,-254.0,0.00022,2]
[376023994,1753825856661,-151.0,0.00022026,7]
[376023995,1753825856670,-151.0,0.00022026,7]
[376023996,1753825856680,-151.0,0.00022026,7]
[376023997,1753825856689,-151.0,0.00022027,7]
[376023998,1753825856699,-151.0,0.00022027,7]
[376023999,1753825856708,-151.0,0.00022027,7]
[376024000,1753825856718,-151.0,0.00022027,7]
[376024001,1753825856728,-151.0,0.0002203,7]
[376024002,1753825856737,-1500.0,0.0002204,2]
[376024003,1753825856746,-253.89962721,0.00022055,2]
[376024004,1753825856755,-172.79743861,0.00022055,2]
[376024005,1753825856765,-1500.0,0.00022061,2]
[376024006,1753825856778,-256.395145,0.00022072,6]
[376024007,1753825856789,-151.0,0.00022092,7]
[376024008,1753825856798,-151.0,0.00022092,7]
[376024009,1753825856807,-182.3033446,0.0002211,2]
[376024010,1753825856818,-756.59218773,0.00022139,8]
[376024011,1753825856827,-800.0,0.00022163,2]
[376024012,1753825856836,-1794.155392,0.0002218,5]
[376024013,1753825856846,-182.4873859,0.00022187,2]
[376024014,1753825856953,-1633.55,0.00022187,2]
[376024015,1753825856962,-254.0,0.00022192,7]
[376024016,1753825856972,-2492.59,0.00022196,2]
[376024017,1753825856982,-518.284652,0.00022196,2]
[376024018,1753825856991,-2035.69,0.00022196,2]
[376024019,1753825857001,-1.5524528,0.00022196,2]
[376024020,1753825857019,-1158.23,0.00021379,2]
[376024021,1753825857028,-497.7675472,0.00022196,2]
[376024022,1753825857037,-123.94089178,0.00022196,2]
[376024023,1753825857246,-563.70496601,0.00018898,2]
[376024024,1753825857256,-7619.55427084,0.00018909,2]
[376024025,1753825857266,-634.71348817,0.00018909,2]
[376024026,1753825857277,-3130.04251781,0.00018909,2]
[376024027,1753825857318,-38615.68972318,0.00018909,2]
[376024028,1753825857327,-460.0,0.0001891,2]
[376024029,1753825857336,-500.0,0.0001891,2]
[376024030,1753825857346,-160.0,0.0001891,2]
[376024031,1753825857354,-2200.0,0.000214,2]
[376024032,1753825857363,-1158.23,0.00021653,2]
[376024033,1753825857372,-430.1392862,0.00021659,2]
[376024034,1753825857380,-1158.23,0.00021927,2]
[376024035,1753825857389,-1089.56910822,0.00022196,2]
[376024036,1753825857398,-460.0,0.00022196,2]
[376024037,1753825857407,-460.0,0.00022196,2]
[376024038,1753825857415,-624.94,0.00022196,2]
[376024039,1753825857423,-4419.34,0.00022198,2]
[376024040,1753825857432,-477.47,0.00022198,2]
[376024041,1753825857441,-796.57,0.00022198,2]
[376024042,1753825857449,-460.0,0.00022198,2]
[376024043,1753825857458,-637.15,0.00022198,2]
[376024044,1753825857469,-578.21,0.00022198,2]
[376024045,1753825857478,-460.0,0.00022198,2]
[376024046,1753825857488,-1636.02,0.00022198,2]
[376024047,1753825857497,-460.0,0.00022198,2]
[376024048,1753825857506,-486.55,0.00022198,2]
[376024049,1753825857515,-460.0,0.00022198,2]
[376024050,1753825857523,-460.0,0.00022198,2]
[376024051,1753825857532,-460.0,0.00022198,2]
[376024052,1753825857542,-920.0,0.00022199,2]
[376024053,1753825857551,-560.51,0.00022199,2]
[376024054,1753825857561,-534.99,0.00022199,2]
[376024055,1753825857570,-684.41,0.00022199,2]
[376024056,1753825857579,-1178.35,0.00022199,2]
[376024057,1753825857589,-563.13,0.00022199,2]
[376024058,1753825857598,-808.78,0.00022199,2]
[376024059,1753825857608,-151.0,0.000222,5]
[376024060,1753825857617,-1224.66,0.000222,2]
[376024061,1753825857626,-429.55241128,0.000222,2]
[376024062,1753825857636,-1000.0,0.000222,5]
[376024063,1753825857646,-4927.21,0.000222,2]
[376024064,1753825857655,-1238.68,0.000222,2]
[376024065,1753825857664,-1755.58,0.00022201,2]
[376024066,1753825857673,-460.0,0.00022201,2]
[376024067,1753825857683,-1139.3,0.00022201,2]
[376024068,1753825857692,-1158.23,0.00022201,2]
[376024069,1753825857702,-182.3033446,0.00022219,2]
[376024070,1753825857711,-1000.0,0.0002222,5]
[376024071,1753825857720,-256.395145,0.00022221,2]
[376024072,1753825857730,-1281.4,0.00022229,5]
[376024073,1753825857740,-1000.0,0.0002224,5]
[376024074,1753825857749,-800.0,0.00022252,2]
[376024075,1753825857759,-206.0,0.0002226,2]
[376024076,1753825857769,-1000.0,0.0002226,5]
[376024077,1753825857781,-256.395145,0.00022274,4]
[376024078,1753825857790,-1000.0,0.0002228,5]
[376024079,1753825857799,-2713.46267202,0.000223,4]
[376024080,1753825857812,-1483.26788765,0.000223,4]
[376024081,1753825857824,-5803.26944033,0.000223,4]
[376024082,1753825857833,-596.6672332,0.000223,5]
[376024083,1753825857845,-403.3327668,0.000223,5]
[376024084,1753825857857,-643.0,0.000223,2]
[376024085,1753825857873,-325.0,0.00022306,3]
[376024086,1753825857889,-325.0,0.00022306,3]
[376024087,1753825857902,-325.0,0.00022306,3]
[376024088,1753825857915,-325.0,0.00022306,3]
[376024089,1753825857928,-325.0,0.00022306,3]
[376024090,1753825857944,-1000.0,0.0002232,5]
[376024091,1753825857957,-182.3033446,0.00022329,2]
[376024092,1753825857971,-118.8696311,0.0002234,5]
[376024093,1753825857989,-881.1303689,0.0002234,5]
[376024094,1753825858002,-622.97664847,0.00022356,2]
[376024095,1753825858016,-756.59218773,0.00022356,8]
[376024096,1753825858030,-172.79743861,0.00022356,2]
[376024097,1753825858049,-587.0,0.00022357,2]
[376024098,1753825858063,-1000.0,0.0002236,5]
[376024099,1753825858075,-4932.75315118,0.0002237,2]
[376024100,1753825858088,-10265.75347671,0.0002237,2]
[376024101,1753825858099,-5800.92,0.00022373,2]
[376024102,1753825858114,-1307.256996,0.0002238,5]
[376024103,1753825858128,-1000.0,0.0002238,5]
[376024104,1753825858141,-560.0,0.00022383,2]
[376024105,1753825858156,-1000.0,0.000224,5]
[376024106,1753825858170,-1000.0,0.000224,5]
[376024107,1753825858183,-189.926797,0.000224,2]
[376024108,1753825858194,-445.918,0.000224,2]
[376024109,1753825858206,-2000.0,0.00022422,2]
[376024110,1753825858219,-182.3033446,0.00022438,2]
[376024111,1753825858234,-8877.40810173,0.0002246,14]
[376024114,1753825975273,-300.0,0.00018897,2]
[376024115,1753825975299,-451.81564048,0.00018898,2]
[376024116,1753825975328,-460.0,0.00018898,2]
[376024117,1753825975354,-460.0,0.00018898,2]
[376024118,1753825975380,-238.51968945,0.00018898,2]
[376024119,1753825975405,-460.0,0.00018898,2]
[376024120,1753825975431,-460.0,0.00018898,2]
[376024121,1753825975456,-460.0,0.00018898,2]
[376024122,1753825975481,-460.0,0.00018898,2]
[376024123,1753825975507,-460.0,0.00018898,2]
[376024124,1753825975533,-933.03,0.00018899,2]
[376024125,1753825975560,-556.19,0.00018899,2]
[376024126,1753825975587,-460.0,0.00018899,2]
[376024127,1753825975612,-520.92841865,0.00018908,2]
[376024128,1753825975640,-2025.53,0.00018908,2]
[376024129,1753825975667,-460.0,0.00018908,2]
[376024130,1753825975694,-420.0,0.00018908,2]
[376024131,1753825975720,-460.0,0.00018908,2]
[376024132,1753825975744,-460.0,0.00018908,2]
[376024133,1753825975769,-460.0,0.00018908,2]
[376024134,1753825975796,-460.0,0.00018908,2]
[376024135,1753825975827,-460.0,0.00018908,2]
[376024136,1753825975854,-460.0,0.00018908,2]
[376024137,1753825975880,-460.0,0.00018908,2]
[376024138,1753825975907,-460.0,0.0001891,2]
[376024139,1753825975933,-460.0,0.0001891,2]
[376024140,1753825975959,-460.0,0.0001891,2]
[376024141,1753825975986,-460.0,0.0001891,2]
[376024142,1753825976015,-589.17,0.0001891,2]
[376024143,1753825976040,-460.0,0.0001891,2]
[376024144,1753825976065,-151.0,0.0001891,2]
[376024145,1753825976091,-460.0,0.0001891,2]
[376024146,1753825976116,-460.0,0.0001891,2]
[376024147,1753825976142,-460.0,0.0001891,2]
[376024148,1753825976168,-460.0,0.0001891,2]
[376024149,1753825976193,-460.0,0.0001891,2]
[376024150,1753825976218,-460.0,0.0001891,2]
[376024151,1753825976243,-553.81,0.0001891,2]
[376024152,1753825976270,-460.0,0.0001891,2]